[Event "Titled Tuesday Blitz January 10 Late 2023"]
[White "Haszon, David"]
[Black "Paszewski, Mateusz"]
[WhiteFideId "733610"]
[BlackFideId "1141058"]
[WhiteElo "2264"]
[BlackElo "2279"]
[Result "0-1"]
[Round "06"]
[TimeControl "180+2"]
[Date "2023.01.10"]
[WhiteClock "0:01:18"]
[BlackClock "0:01:58"]

1. d4 {[%clk 0:00:00]}  d5 {[%clk 0:00:00]} 2. Bf4 {[%clk 0:03:00]}  c5 {[%clk 0:02:57]} 3. e3 {[%clk 0:02:58]}  cxd4 {[%clk 0:02:57]} 4. exd4 {[%clk 0:02:54]}  Nc6 {[%clk 0:02:58]} 5. c3 {[%clk 0:02:54]}  Bf5 {[%clk 0:02:58]} 6. Qb3 {[%clk 0:02:51]}  Qd7 {[%clk 0:02:58]} 7. Nf3 {[%clk 0:02:48]}  f6 {[%clk 0:02:58]} 8. Nbd2 {[%clk 0:02:47]}  g5 {[%clk 0:02:58]} 9. Bg3 {[%clk 0:02:43]}  h5 {[%clk 0:02:57]} 10. h4 {[%clk 0:02:41]}  g4 {[%clk 0:02:57]} 11. Ng1 {[%clk 0:02:40]}  e6 {[%clk 0:02:57]} 12. Ne2 {[%clk 0:02:40]}  Nge7 {[%clk 0:02:57]} 13. Nf4 {[%clk 0:02:35]}  Bh6 {[%clk 0:02:37]} 14. Be2 {[%clk 0:02:31]}  Ng6 {[%clk 0:02:35]} 15. Nxg6 {[%clk 0:02:14]}  Bxg6 {[%clk 0:02:31]} 16. Nf1 {[%clk 0:02:09]}  O-O {[%clk 0:02:32]} 17. Ne3 {[%clk 0:02:03]}  f5 {[%clk 0:02:14]} 18. Be5 {[%clk 0:01:56]}  f4 {[%clk 0:02:13]} 19. Nd1 {[%clk 0:01:37]}  Nxe5 {[%clk 0:02:08]} 20. dxe5 {[%clk 0:01:28]}  Qg7 {[%clk 0:02:08]} 21. c4 {[%clk 0:01:27]}  Qxe5 {[%clk 0:02:03]} 22. Qc3 {[%clk 0:01:18]}  d4 {[%clk 0:01:58]} 0-1


[Site "https://www.chess.com"]

[Event "Titled Tuesday Blitz January 10 Late 2023"]
[White "Roman, Rodrigo"]
[Black "Osmak, Yuliia"]
[WhiteFideId "3701220"]
[BlackFideId "14101602"]
[WhiteElo "2058"]
[BlackElo "2440"]
[Result "0-1"]
[Round "06"]
[TimeControl "180+2"]
[Date "2023.01.10"]
[WhiteClock "0:01:36"]
[BlackClock "0:00:59"]

1. e4 {[%clk 0:00:00]}  c6 {[%clk 0:00:00]} 2. d4 {[%clk 0:03:00]}  d5 {[%clk 0:02:59]} 3. Nc3 {[%clk 0:02:59]}  dxe4 {[%clk 0:03:00]} 4. Nxe4 {[%clk 0:02:58]}  Bf5 {[%clk 0:02:58]} 5. Ng3 {[%clk 0:02:59]}  Bg6 {[%clk 0:02:57]} 6. Nf3 {[%clk 0:02:58]}  Nd7 {[%clk 0:02:57]} 7. h4 {[%clk 0:02:59]}  h6 {[%clk 0:02:56]} 8. h5 {[%clk 0:02:59]}  Bh7 {[%clk 0:02:55]} 9. Bc4 {[%clk 0:02:59]}  e6 {[%clk 0:02:56]} 10. c3 {[%clk 0:02:59]}  Ngf6 {[%clk 0:02:53]} 11. Bf4 {[%clk 0:02:58]}  Nd5 {[%clk 0:02:52]} 12. Bxd5 {[%clk 0:02:57]}  cxd5 {[%clk 0:02:32]} 13. Qb3 {[%clk 0:02:57]}  Qb6 {[%clk 0:02:28]} 14. O-O {[%clk 0:02:54]}  Be7 {[%clk 0:02:27]} 15. Rfe1 {[%clk 0:02:50]}  O-O {[%clk 0:02:26]} 16. Ne5 {[%clk 0:02:49]}  Nxe5 {[%clk 0:02:25]} 17. Qxb6 {[%clk 0:02:46]}  Nf3+ {[%clk 0:02:22]} 18. gxf3 {[%clk 0:02:45]}  axb6 {[%clk 0:02:21]} 19. Kg2 {[%clk 0:02:46]}  Ra5 {[%clk 0:02:21]} 20. a3 {[%clk 0:02:38]}  Rfa8 {[%clk 0:02:16]} 21. Re2 {[%clk 0:02:37]}  Bd3 {[%clk 0:02:07]} 22. Rd2 {[%clk 0:02:34]}  Bc4 {[%clk 0:01:48]} 23. Re1 {[%clk 0:02:31]}  Bf8 {[%clk 0:01:45]} 24. Bc7 {[%clk 0:02:30]}  R5a6 {[%clk 0:01:44]} 25. Nf1 {[%clk 0:02:28]}  Rc8 {[%clk 0:01:43]} 26. Bg3 {[%clk 0:02:21]}  b5 {[%clk 0:01:43]} 27. Ne3 {[%clk 0:02:20]}  f6 {[%clk 0:01:39]} 28. f4 {[%clk 0:02:19]}  f5 {[%clk 0:01:37]} 29. Kh3 {[%clk 0:02:18]}  Kf7 {[%clk 0:01:25]} 30. Ng2 {[%clk 0:01:59]}  Be7 {[%clk 0:01:25]} 31. Rb1 {[%clk 0:01:58]}  Ba2 {[%clk 0:01:16]} 32. Ra1 {[%clk 0:01:57]}  Bb3 {[%clk 0:01:13]} 33. Ne1 {[%clk 0:01:56]}  b4 {[%clk 0:01:13]} 34. cxb4 {[%clk 0:01:54]}  Bxb4 {[%clk 0:01:12]} 35. Re2 {[%clk 0:01:46]}  Bc4 {[%clk 0:01:11]} 36. Rc2 {[%clk 0:01:46]}  Bxe1 {[%clk 0:01:01]} 37. Rxe1 {[%clk 0:01:39]}  Bf1+ {[%clk 0:00:59]} 38. Rxf1 {[%clk 0:01:40]}  Rxc2 {[%clk 0:00:59]} 39. Rb1 {[%clk 0:01:36]}  Rb6 {[%clk 0:00:59]} 0-1


[Site "https://www.chess.com"]

[Event "Titled Tuesday Blitz January 10 Late 2023"]
[White "Mortazavi, Ali"]
[Black "Martins, Bruno Andre Leite"]
[WhiteFideId "401323"]
[BlackFideId "1942255"]
[WhiteElo "2333"]
[BlackElo "2348"]
[Result "0-1"]
[Round "06"]
[TimeControl "180+2"]
[Date "2023.01.10"]
[WhiteClock "0:00:22"]
[BlackClock "0:01:04"]

1. Nf3 {[%clk 0:00:00]}  Nf6 {[%clk 0:00:00]} 2. g3 {[%clk 0:02:58]}  g6 {[%clk 0:02:49]} 3. Bg2 {[%clk 0:02:58]}  Bg7 {[%clk 0:02:50]} 4. O-O {[%clk 0:02:59]}  O-O {[%clk 0:02:51]} 5. d3 {[%clk 0:03:00]}  d5 {[%clk 0:02:52]} 6. Nbd2 {[%clk 0:03:01]}  c5 {[%clk 0:02:51]} 7. e3 {[%clk 0:03:01]}  Nc6 {[%clk 0:02:52]} 8. e4 {[%clk 0:03:02]}  e5 {[%clk 0:02:51]} 9. c3 {[%clk 0:03:02]}  Re8 {[%clk 0:02:49]} 10. Qa4 {[%clk 0:03:03]}  h6 {[%clk 0:02:46]} 11. exd5 {[%clk 0:03:03]}  Nxd5 {[%clk 0:02:45]} 12. Ne4 {[%clk 0:03:01]}  Bf8 {[%clk 0:02:45]} 13. Qb3 {[%clk 0:03:01]}  Be6 {[%clk 0:02:20]} 14. c4 {[%clk 0:02:59]}  Ndb4 {[%clk 0:02:16]} 15. Rd1 {[%clk 0:02:59]}  f5 {[%clk 0:02:14]} 16. a3 {[%clk 0:02:52]}  fxe4 {[%clk 0:02:10]} 17. dxe4 {[%clk 0:02:18]}  Nd4 {[%clk 0:02:09]} 18. Nxd4 {[%clk 0:02:19]}  cxd4 {[%clk 0:02:01]} 19. axb4 {[%clk 0:02:17]}  b5 {[%clk 0:02:02]} 20. Ra6 {[%clk 0:02:17]}  Qd7 {[%clk 0:02:01]} 21. Bf1 {[%clk 0:02:11]}  Rac8 {[%clk 0:01:56]} 22. Qa3 {[%clk 0:01:59]}  bxc4 {[%clk 0:01:54]} 23. Rxa7 {[%clk 0:01:58]}  Bxb4 {[%clk 0:01:43]} 24. Qxb4 {[%clk 0:01:58]}  Qxa7 {[%clk 0:01:44]} 25. Bxh6 {[%clk 0:01:32]}  Qf7 {[%clk 0:01:40]} 26. f4 {[%clk 0:01:33]}  d3 {[%clk 0:01:31]} 27. fxe5 {[%clk 0:01:25]}  Qf3 {[%clk 0:01:28]} 28. Qb7 {[%clk 0:01:06]}  Qf7 {[%clk 0:01:28]} 29. Qb6 {[%clk 0:00:51]}  Rb8 {[%clk 0:01:28]} 30. Qd4 {[%clk 0:00:50]}  Red8 {[%clk 0:01:23]} 31. Qc3 {[%clk 0:00:50]}  Qa7+ {[%clk 0:01:21]} 32. Kh1 {[%clk 0:00:49]}  Bg4 {[%clk 0:01:20]} 33. Rd2 {[%clk 0:00:47]}  Bf3+ {[%clk 0:01:20]} 34. Rg2 {[%clk 0:00:36]}  Qf2 {[%clk 0:01:15]} 35. Qxc4+ {[%clk 0:00:34]}  Kh8 {[%clk 0:01:11]} 36. Qc1 {[%clk 0:00:33]}  Rxb2 {[%clk 0:01:07]} 37. Bg7+ {[%clk 0:00:22]}  Kxg7 {[%clk 0:01:04]} 0-1


[Site "https://www.chess.com"]

[Event "Titled Tuesday Blitz January 10 Late 2023"]
[White "Lacasa Diaz, Jose Antonio"]
[Black "Aldokhin, Ivan"]
[WhiteFideId "2203375"]
[BlackFideId "24115720"]
[WhiteElo "2359"]
[BlackElo "2413"]
[Result "1-0"]
[Round "06"]
[TimeControl "180+2"]
[Date "2023.01.10"]
[WhiteClock "0:00:14"]
[BlackClock "0:00:02"]

1. e4 {[%clk 0:00:00]}  c5 {[%clk 0:00:00]} 2. Nf3 {[%clk 0:03:00]}  e6 {[%clk 0:03:00]} 3. g3 {[%clk 0:03:00]}  b6 {[%clk 0:03:00]} 4. Bg2 {[%clk 0:03:00]}  Bb7 {[%clk 0:03:01]} 5. d4 {[%clk 0:02:56]}  Bxe4 {[%clk 0:03:01]} 6. Nc3 {[%clk 0:02:53]}  Bxf3 {[%clk 0:02:50]} 7. Bxf3 {[%clk 0:02:49]}  d5 {[%clk 0:02:37]} 8. O-O {[%clk 0:02:45]}  Nf6 {[%clk 0:02:33]} 9. Re1 {[%clk 0:02:41]}  Be7 {[%clk 0:02:31]} 10. dxc5 {[%clk 0:02:21]}  O-O {[%clk 0:02:19]} 11. cxb6 {[%clk 0:02:21]}  axb6 {[%clk 0:01:50]} 12. a3 {[%clk 0:02:17]}  Nbd7 {[%clk 0:01:42]} 13. Bf4 {[%clk 0:02:17]}  Nc5 {[%clk 0:01:38]} 14. b4 {[%clk 0:02:06]}  Nb7 {[%clk 0:01:26]} 15. Nb5 {[%clk 0:02:00]}  Nd6 {[%clk 0:01:16]} 16. Nd4 {[%clk 0:01:49]}  Qd7 {[%clk 0:01:03]} 17. Qd3 {[%clk 0:01:18]}  Nde4 {[%clk 0:00:51]} 18. b5 {[%clk 0:01:03]}  Bc5 {[%clk 0:00:34]} 19. Be5 {[%clk 0:00:54]}  Ra4 {[%clk 0:00:33]} 20. Kg2 {[%clk 0:00:45]}  Qb7 {[%clk 0:00:20]} 21. c4 {[%clk 0:00:43]}  Rxc4 {[%clk 0:00:15]} 22. Bxe4 {[%clk 0:00:27]}  Nxe4 {[%clk 0:00:09]} 23. Rxe4 {[%clk 0:00:24]}  dxe4 {[%clk 0:00:08]} 24. Qxc4 {[%clk 0:00:22]}  e3+ {[%clk 0:00:03]} 25. f3 {[%clk 0:00:22]}  Kh8 {[%clk 0:00:03]} 26. Re1 {[%clk 0:00:20]}  f6 {[%clk 0:00:02]} 27. Nxe6 {[%clk 0:00:17]}  Re8 {[%clk 0:00:02]} 28. Bf4 {[%clk 0:00:15]}  Qd7 {[%clk 0:00:02]} 29. Bxe3 {[%clk 0:00:14]} 1-0


[Site "https://www.chess.com"]

[Event "Titled Tuesday Blitz January 10 Late 2023"]
[White "Marcolino, Daniel Mattos"]
[Black "Jimenez Almeida, Luis David"]
[WhiteFideId "2106841"]
[BlackFideId "22242244"]
[WhiteElo "2006"]
[BlackElo "2242"]
[Result "0-1"]
[Round "06"]
[TimeControl "180+2"]
[Date "2023.01.10"]
[WhiteClock "0:00:22"]
[BlackClock "0:00:44"]

1. d4 {[%clk 0:00:00]}  g6 {[%clk 0:00:00]} 2. Nf3 {[%clk 0:02:59]}  Bg7 {[%clk 0:02:59]} 3. g3 {[%clk 0:03:00]}  f5 {[%clk 0:02:59]} 4. Bg2 {[%clk 0:03:00]}  Nf6 {[%clk 0:02:59]} 5. O-O {[%clk 0:03:00]}  O-O {[%clk 0:02:59]} 6. b3 {[%clk 0:03:00]}  d6 {[%clk 0:03:00]} 7. Bb2 {[%clk 0:03:01]}  Qe8 {[%clk 0:02:57]} 8. c4 {[%clk 0:03:01]}  a5 {[%clk 0:02:57]} 9. Nc3 {[%clk 0:02:59]}  c6 {[%clk 0:02:56]} 10. Re1 {[%clk 0:02:59]}  e5 {[%clk 0:02:56]} 11. dxe5 {[%clk 0:02:55]}  dxe5 {[%clk 0:02:55]} 12. e4 {[%clk 0:02:54]}  f4 {[%clk 0:02:56]} 13. Na4 {[%clk 0:02:54]}  Bg4 {[%clk 0:02:55]} 14. Qd6 {[%clk 0:02:45]}  Nfd7 {[%clk 0:02:30]} 15. Ng5 {[%clk 0:02:25]}  h6 {[%clk 0:02:08]} 16. Nh3 {[%clk 0:01:22]}  f3 {[%clk 0:02:03]} 17. Bf1 {[%clk 0:01:22]}  Na6 {[%clk 0:01:36]} 18. c5 {[%clk 0:01:21]}  Nb4 {[%clk 0:01:36]} 19. Red1 {[%clk 0:01:08]}  Rd8 {[%clk 0:01:03]} 20. Qc7 {[%clk 0:00:48]}  Nc2 {[%clk 0:01:01]} 21. Rac1 {[%clk 0:00:48]}  Nd4 {[%clk 0:00:48]} 22. Bxd4 {[%clk 0:00:44]}  exd4 {[%clk 0:00:48]} 23. Nf4 {[%clk 0:00:26]}  Be5 {[%clk 0:00:49]} 24. Nd3 {[%clk 0:00:22]}  Bxc7 {[%clk 0:00:44]} 0-1


[Site "https://www.chess.com"]

[Event "Titled Tuesday Blitz January 10 Late 2023"]
[White "Holt, Conrad"]
[Black "Martinez, Marcel"]
[WhiteFideId "2034387"]
[BlackFideId "2016249"]
[WhiteElo "2540"]
[BlackElo "2402"]
[Result "1-0"]
[Round "06"]
[TimeControl "180+2"]
[Date "2023.01.10"]
[WhiteClock "0:01:26"]
[BlackClock "0:00:13"]

1. d4 {[%clk 0:00:00]}  Nf6 {[%clk 0:00:00]} 2. c4 {[%clk 0:03:00]}  c5 {[%clk 0:02:59]} 3. d5 {[%clk 0:03:01]}  b5 {[%clk 0:02:59]} 4. cxb5 {[%clk 0:03:01]}  a6 {[%clk 0:02:59]} 5. b6 {[%clk 0:03:02]}  d6 {[%clk 0:02:59]} 6. Nc3 {[%clk 0:03:01]}  g6 {[%clk 0:02:57]} 7. e4 {[%clk 0:03:01]}  Bg7 {[%clk 0:02:57]} 8. Be2 {[%clk 0:03:01]}  O-O {[%clk 0:02:51]} 9. Nf3 {[%clk 0:03:02]}  Qxb6 {[%clk 0:02:51]} 10. O-O {[%clk 0:03:03]}  Bg4 {[%clk 0:02:49]} 11. Nd2 {[%clk 0:03:03]}  Bxe2 {[%clk 0:02:47]} 12. Qxe2 {[%clk 0:03:04]}  Nbd7 {[%clk 0:02:45]} 13. Nc4 {[%clk 0:03:05]}  Qc7 {[%clk 0:02:45]} 14. Bg5 {[%clk 0:03:05]}  Rfe8 {[%clk 0:02:39]} 15. Rad1 {[%clk 0:03:02]}  h6 {[%clk 0:02:36]} 16. Bh4 {[%clk 0:03:02]}  Rab8 {[%clk 0:02:30]} 17. f4 {[%clk 0:03:00]}  Nh7 {[%clk 0:02:22]} 18. e5 {[%clk 0:02:59]}  dxe5 {[%clk 0:02:10]} 19. d6 {[%clk 0:02:52]}  exd6 {[%clk 0:01:53]} 20. Nd5 {[%clk 0:02:44]}  Qa7 {[%clk 0:01:47]} 21. Nxd6 {[%clk 0:02:44]}  Re6 {[%clk 0:01:26]} 22. f5 {[%clk 0:02:39]}  Rxd6 {[%clk 0:01:24]} 23. Ne7+ {[%clk 0:02:26]}  Kf8 {[%clk 0:01:11]} 24. Rxd6 {[%clk 0:02:25]}  g5 {[%clk 0:01:10]} 25. Nc6 {[%clk 0:02:25]}  Qc7 {[%clk 0:01:11]} 26. Nxb8 {[%clk 0:02:19]}  Qxd6 {[%clk 0:01:00]} 27. Nxd7+ {[%clk 0:02:17]}  Qxd7 {[%clk 0:00:59]} 28. Bf2 {[%clk 0:02:16]}  Kg8 {[%clk 0:01:00]} 29. Bxc5 {[%clk 0:02:16]}  Qd5 {[%clk 0:00:42]} 30. b4 {[%clk 0:02:14]}  Nf6 {[%clk 0:00:40]} 31. Rd1 {[%clk 0:02:10]}  Qc6 {[%clk 0:00:40]} 32. Qxe5 {[%clk 0:02:07]}  Ng4 {[%clk 0:00:35]} 33. Rd8+ {[%clk 0:02:06]}  Kh7 {[%clk 0:00:30]} 34. Qe2 {[%clk 0:01:56]}  Qf6 {[%clk 0:00:29]} 35. Rd1 {[%clk 0:01:32]}  Qxf5 {[%clk 0:00:22]} 36. Qd3 {[%clk 0:01:28]}  Qxd3 {[%clk 0:00:20]} 37. Rxd3 {[%clk 0:01:25]}  Be5 {[%clk 0:00:15]} 38. h3 {[%clk 0:01:26]}  Nf6 {[%clk 0:00:13]} 39. Bd4 {[%clk 0:01:25]}  Bxd4+ {[%clk 0:00:13]} 40. Rxd4 {[%clk 0:01:26]} 1-0


[Site "https://www.chess.com"]

[Event "Titled Tuesday Blitz January 10 Late 2023"]
[White "Kozak, Adam"]
[Black "Musovic, Armin"]
[WhiteFideId "753246"]
[BlackFideId "939935"]
[WhiteElo "2572"]
[BlackElo "2261"]
[Result "1-0"]
[Round "06"]
[TimeControl "180+2"]
[Date "2023.01.10"]
[WhiteClock "0:00:07"]
[BlackClock "0:00:21"]

1. a4 {[%clk 0:00:00]}  Nf6 {[%clk 0:00:00]} 2. Nf3 {[%clk 0:02:44]}  e6 {[%clk 0:02:56]} 3. d4 {[%clk 0:02:40]}  d5 {[%clk 0:02:54]} 4. g3 {[%clk 0:02:39]}  c5 {[%clk 0:02:55]} 5. Bg2 {[%clk 0:02:40]}  Nc6 {[%clk 0:02:55]} 6. O-O {[%clk 0:02:38]}  h6 {[%clk 0:02:55]} 7. c3 {[%clk 0:02:38]}  a5 {[%clk 0:02:56]} 8. Na3 {[%clk 0:02:24]}  Bd6 {[%clk 0:02:56]} 9. Nb5 {[%clk 0:02:22]}  O-O {[%clk 0:02:52]} 10. Nxd6 {[%clk 0:02:22]}  Qxd6 {[%clk 0:02:51]} 11. Bf4 {[%clk 0:02:22]}  Qe7 {[%clk 0:02:52]} 12. Rc1 {[%clk 0:02:22]}  c4 {[%clk 0:02:52]} 13. Ne5 {[%clk 0:02:06]}  Bd7 {[%clk 0:02:46]} 14. Re1 {[%clk 0:01:59]}  Rfe8 {[%clk 0:02:41]} 15. Nxd7 {[%clk 0:01:56]}  Qxd7 {[%clk 0:02:35]} 16. Qc2 {[%clk 0:01:51]}  Ne7 {[%clk 0:02:34]} 17. Rcd1 {[%clk 0:01:42]}  Ng6 {[%clk 0:02:26]} 18. Bc1 {[%clk 0:01:34]}  b5 {[%clk 0:02:24]} 19. axb5 {[%clk 0:01:34]}  Qxb5 {[%clk 0:02:22]} 20. h3 {[%clk 0:01:32]}  a4 {[%clk 0:02:23]} 21. g4 {[%clk 0:01:27]}  Qb3 {[%clk 0:02:22]} 22. Qd2 {[%clk 0:01:20]}  Rab8 {[%clk 0:02:16]} 23. f3 {[%clk 0:01:18]}  e5 {[%clk 0:02:09]} 24. dxe5 {[%clk 0:01:14]}  Rxe5 {[%clk 0:02:00]} 25. f4 {[%clk 0:01:13]}  Re7 {[%clk 0:02:00]} 26. Bxd5 {[%clk 0:01:11]}  Rd7 {[%clk 0:01:56]} 27. e4 {[%clk 0:01:03]}  Rbd8 {[%clk 0:01:53]} 28. Qg2 {[%clk 0:01:03]}  Nh4 {[%clk 0:01:46]} 29. Qf2 {[%clk 0:01:01]}  Nxd5 {[%clk 0:01:33]} 30. Rxd5 {[%clk 0:01:01]}  Rxd5 {[%clk 0:01:30]} 31. exd5 {[%clk 0:01:00]}  Ng6 {[%clk 0:01:29]} 32. f5 {[%clk 0:01:00]}  Nf8 {[%clk 0:01:21]} 33. f6 {[%clk 0:01:00]}  Rxd5 {[%clk 0:01:18]} 34. fxg7 {[%clk 0:00:58]}  Kxg7 {[%clk 0:01:17]} 35. Qf4 {[%clk 0:00:54]}  Qb6+ {[%clk 0:01:08]} 36. Be3 {[%clk 0:00:44]}  Qg6 {[%clk 0:00:59]} 37. Bd4+ {[%clk 0:00:42]}  Kh7 {[%clk 0:00:49]} 38. Re8 {[%clk 0:00:41]}  Qb1+ {[%clk 0:00:49]} 39. Kf2 {[%clk 0:00:39]}  Qc2+ {[%clk 0:00:44]} 40. Kg3 {[%clk 0:00:37]}  Qd3+ {[%clk 0:00:42]} 41. Re3 {[%clk 0:00:30]}  Qg6 {[%clk 0:00:40]} 42. Rf3 {[%clk 0:00:17]}  Ne6 {[%clk 0:00:40]} 43. Qxf7+ {[%clk 0:00:14]}  Qxf7 {[%clk 0:00:32]} 44. Rxf7+ {[%clk 0:00:14]}  Kg8 {[%clk 0:00:33]} 45. Rf6 {[%clk 0:00:14]}  Nxd4 {[%clk 0:00:33]} 46. cxd4 {[%clk 0:00:12]}  Rxd4 {[%clk 0:00:34]} 47. Rxh6 {[%clk 0:00:13]}  Rd3+ {[%clk 0:00:34]} 48. Kh4 {[%clk 0:00:13]}  Rb3 {[%clk 0:00:35]} 49. Rc6 {[%clk 0:00:13]}  Rxb2 {[%clk 0:00:30]} 50. Rxc4 {[%clk 0:00:13]}  a3 {[%clk 0:00:26]} 51. Ra4 {[%clk 0:00:13]}  a2 {[%clk 0:00:27]} 52. Ra7 {[%clk 0:00:14]}  Rh2 {[%clk 0:00:28]} 53. g5 {[%clk 0:00:14]}  Kf8 {[%clk 0:00:25]} 54. Kg4 {[%clk 0:00:14]}  Rg2+ {[%clk 0:00:20]} 55. Kh5 {[%clk 0:00:14]}  Ke8 {[%clk 0:00:20]} 56. h4 {[%clk 0:00:14]}  Kd8 {[%clk 0:00:20]} 57. Kg6 {[%clk 0:00:13]}  Kc8 {[%clk 0:00:21]} 58. h5 {[%clk 0:00:12]}  Kb8 {[%clk 0:00:21]} 59. Ra3 {[%clk 0:00:13]}  Kc7 {[%clk 0:00:22]} 60. h6 {[%clk 0:00:13]}  Rh2 {[%clk 0:00:21]} 61. h7 {[%clk 0:00:13]}  Kd6 {[%clk 0:00:21]} 62. Rxa2 {[%clk 0:00:13]}  Rxa2 {[%clk 0:00:22]} 63. h8=Q {[%clk 0:00:14]}  Re2 {[%clk 0:00:21]} 64. Qf6+ {[%clk 0:00:14]}  Kd7 {[%clk 0:00:21]} 65. Qf7+ {[%clk 0:00:13]}  Kd8 {[%clk 0:00:21]} 66. Qd5+ {[%clk 0:00:11]}  Ke7 {[%clk 0:00:21]} 67. Qc5+ {[%clk 0:00:10]}  Kd8 {[%clk 0:00:22]} 68. Qd6+ {[%clk 0:00:10]}  Ke8 {[%clk 0:00:22]} 69. Qb8+ {[%clk 0:00:10]}  Ke7 {[%clk 0:00:21]} 70. Qb7+ {[%clk 0:00:09]}  Kd8 {[%clk 0:00:21]} 71. Qa8+ {[%clk 0:00:09]}  Ke7 {[%clk 0:00:22]} 72. Qa3+ {[%clk 0:00:08]}  Kd8 {[%clk 0:00:21]} 73. Qd3+ {[%clk 0:00:07]} 1-0


[Site "https://www.chess.com"]

[Event "Titled Tuesday Blitz January 10 Late 2023"]
[White "Kobalia, Mikhail"]
[Black "Winterberg, Lukas"]
[WhiteFideId "4119150"]
[BlackFideId "24622702"]
[WhiteElo "2578"]
[BlackElo "2402"]
[Result "1-0"]
[Round "06"]
[TimeControl "180+2"]
[Date "2023.01.10"]
[WhiteClock "0:01:07"]
[BlackClock "0:01:45"]

1. e4 {[%clk 0:00:00]}  e6 {[%clk 0:00:00]} 2. d3 {[%clk 0:02:58]}  d5 {[%clk 0:02:59]} 3. Nd2 {[%clk 0:02:58]}  Nc6 {[%clk 0:03:00]} 4. Ngf3 {[%clk 0:02:57]}  Nf6 {[%clk 0:03:01]} 5. e5 {[%clk 0:02:57]}  Nd7 {[%clk 0:02:58]} 6. d4 {[%clk 0:02:57]}  f6 {[%clk 0:02:58]} 7. Bb5 {[%clk 0:02:57]}  fxe5 {[%clk 0:02:59]} 8. dxe5 {[%clk 0:02:56]}  Bc5 {[%clk 0:02:59]} 9. Nb3 {[%clk 0:02:56]}  Be7 {[%clk 0:02:57]} 10. Bxc6 {[%clk 0:02:37]}  bxc6 {[%clk 0:02:52]} 11. Nfd4 {[%clk 0:02:16]}  Nb8 {[%clk 0:02:53]} 12. Qh5+ {[%clk 0:02:16]}  g6 {[%clk 0:02:52]} 13. Qh3 {[%clk 0:02:15]}  Qd7 {[%clk 0:02:52]} 14. Bh6 {[%clk 0:02:11]}  c5 {[%clk 0:02:42]} 15. Nf3 {[%clk 0:02:07]}  c4 {[%clk 0:02:38]} 16. Nbd4 {[%clk 0:01:54]}  c5 {[%clk 0:02:36]} 17. Bg7 {[%clk 0:01:29]}  Rg8 {[%clk 0:02:31]} 18. Qxh7 {[%clk 0:01:25]}  Rxg7 {[%clk 0:02:12]} 19. Qxg7 {[%clk 0:01:24]}  cxd4 {[%clk 0:02:11]} 20. Qxg6+ {[%clk 0:01:24]}  Kd8 {[%clk 0:02:12]} 21. Nxd4 {[%clk 0:01:22]}  Nc6 {[%clk 0:02:12]} 22. Nxc6+ {[%clk 0:01:22]}  Qxc6 {[%clk 0:02:11]} 23. h4 {[%clk 0:01:15]}  Rb8 {[%clk 0:02:12]} 24. h5 {[%clk 0:01:14]}  Rxb2 {[%clk 0:02:11]} 25. h6 {[%clk 0:01:14]}  Bb4+ {[%clk 0:02:04]} 26. Kf1 {[%clk 0:01:14]}  Bc3 {[%clk 0:02:04]} 27. h7 {[%clk 0:01:13]}  Bxe5 {[%clk 0:01:45]} 28. Qg5+ {[%clk 0:01:07]} 1-0


[Site "https://www.chess.com"]

[Event "Titled Tuesday Blitz January 10 Late 2023"]
[White "Injac, Teodora"]
[Black "Suvorov, Luca"]
[WhiteFideId "932400"]
[BlackFideId "12977071"]
[WhiteElo "2391"]
[BlackElo "2310"]
[Result "1-0"]
[Round "06"]
[TimeControl "180+2"]
[Date "2023.01.10"]
[WhiteClock "0:00:10"]
[BlackClock "0:00:01"]

1. d4 {[%clk 0:00:00]}  Nf6 {[%clk 0:00:00]} 2. Nf3 {[%clk 0:03:00]}  d6 {[%clk 0:02:57]} 3. g3 {[%clk 0:03:00]}  Nbd7 {[%clk 0:02:55]} 4. Nc3 {[%clk 0:02:58]}  g6 {[%clk 0:02:55]} 5. Bg2 {[%clk 0:02:56]}  Bg7 {[%clk 0:02:53]} 6. O-O {[%clk 0:02:56]}  O-O {[%clk 0:02:54]} 7. a4 {[%clk 0:02:55]}  c6 {[%clk 0:02:54]} 8. e4 {[%clk 0:02:55]}  e5 {[%clk 0:02:48]} 9. h3 {[%clk 0:02:55]}  a5 {[%clk 0:02:46]} 10. Re1 {[%clk 0:02:53]}  Re8 {[%clk 0:02:47]} 11. Be3 {[%clk 0:02:53]}  exd4 {[%clk 0:02:45]} 12. Bxd4 {[%clk 0:02:52]}  Qc7 {[%clk 0:02:44]} 13. Qd2 {[%clk 0:02:49]}  Ne5 {[%clk 0:02:27]} 14. Nh2 {[%clk 0:02:46]}  Be6 {[%clk 0:02:24]} 15. b3 {[%clk 0:02:21]}  c5 {[%clk 0:02:17]} 16. Nb5 {[%clk 0:02:20]}  Qb6 {[%clk 0:02:09]} 17. Bc3 {[%clk 0:02:13]}  Rad8 {[%clk 0:02:00]} 18. Bxa5 {[%clk 0:02:09]}  Qc6 {[%clk 0:01:59]} 19. Bxd8 {[%clk 0:02:06]}  Rxd8 {[%clk 0:01:49]} 20. f4 {[%clk 0:02:02]}  Ned7 {[%clk 0:01:50]} 21. Rad1 {[%clk 0:01:56]}  Ne8 {[%clk 0:01:43]} 22. e5 {[%clk 0:01:49]}  Qb6 {[%clk 0:01:16]} 23. Nxd6 {[%clk 0:01:45]}  c4+ {[%clk 0:01:09]} 24. Qd4 {[%clk 0:01:43]}  cxb3 {[%clk 0:01:06]} 25. cxb3 {[%clk 0:01:37]}  Bxb3 {[%clk 0:01:03]} 26. Qxb6 {[%clk 0:01:19]}  Nxb6 {[%clk 0:00:58]} 27. Rb1 {[%clk 0:01:15]}  Nxd6 {[%clk 0:00:57]} 28. Rxb3 {[%clk 0:01:08]}  Ndc4 {[%clk 0:00:44]} 29. a5 {[%clk 0:01:07]}  Na4 {[%clk 0:00:44]} 30. Rxb7 {[%clk 0:01:00]}  Bf8 {[%clk 0:00:39]} 31. Ng4 {[%clk 0:00:55]}  Bc5+ {[%clk 0:00:21]} 32. Kh2 {[%clk 0:00:51]}  Nxa5 {[%clk 0:00:16]} 33. Rd7 {[%clk 0:00:51]}  Rxd7 {[%clk 0:00:16]} 34. Nf6+ {[%clk 0:00:33]}  Kg7 {[%clk 0:00:15]} 35. Nxd7 {[%clk 0:00:33]}  Nb3 {[%clk 0:00:15]} 36. Nxc5 {[%clk 0:00:34]}  Naxc5 {[%clk 0:00:12]} 37. Bd5 {[%clk 0:00:33]}  Nd4 {[%clk 0:00:13]} 38. Ra1 {[%clk 0:00:32]}  Nce6 {[%clk 0:00:13]} 39. Ra7 {[%clk 0:00:30]}  Kg8 {[%clk 0:00:08]} 40. Kg2 {[%clk 0:00:27]}  h5 {[%clk 0:00:07]} 41. h4 {[%clk 0:00:27]}  Kg7 {[%clk 0:00:05]} 42. Kf2 {[%clk 0:00:26]}  Kg8 {[%clk 0:00:05]} 43. Bxe6 {[%clk 0:00:27]}  Nxe6 {[%clk 0:00:05]} 44. Ke3 {[%clk 0:00:25]}  Ng7 {[%clk 0:00:05]} 45. Ra8+ {[%clk 0:00:25]}  Kh7 {[%clk 0:00:04]} 46. Kf3 {[%clk 0:00:23]}  Nf5 {[%clk 0:00:04]} 47. Ra7 {[%clk 0:00:22]}  Kg8 {[%clk 0:00:04]} 48. Ra6 {[%clk 0:00:20]}  Kf8 {[%clk 0:00:05]} 49. Rf6 {[%clk 0:00:19]}  Kg7 {[%clk 0:00:05]} 50. Kg2 {[%clk 0:00:18]}  Ne3+ {[%clk 0:00:05]} 51. Kh3 {[%clk 0:00:14]}  Ng4 {[%clk 0:00:04]} 52. Ra6 {[%clk 0:00:14]}  Ne3 {[%clk 0:00:03]} 53. e6 {[%clk 0:00:13]}  f5 {[%clk 0:00:02]} 54. e7 {[%clk 0:00:12]}  Kf7 {[%clk 0:00:01]} 55. Re6 {[%clk 0:00:10]} 1-0


[Site "https://www.chess.com"]